bitfinex-derivatives/quotes_BNBF0:USTF0_20250115
["timestamp","ask_amount","ask_price","bid_price","bid_amount"]
[1736982104437,1.28007106,713.57,712.1,1.696]
[1736982104641,1.28007498,713.56,712.1,1.696]
[1736982104944,1.04959705,713.94,712.1,1.696]
[1736982104945,1.28007891,713.55,712.1,1.696]
[1736982105243,1.28008284,713.54,712.1,1.696]
[1736982105537,1.28008677,713.53,712.1,1.696]
[1736982105745,0.99979022,713.52,712.1,1.696]
[1736982106041,1.28009463,713.51,712.1,1.696]
[1736982106237,0.99979022,713.5,712.1,1.696]
[1736982106441,0.99979022,713.49,712.1,1.696]
[1736982106639,0.99979022,713.48,712.1,1.696]
[1736982106841,0.99979022,713.47,712.1,1.696]
[1736982107036,0.99979022,713.46,712.1,1.696]
[1736982107238,0.99979022,713.45,712.1,1.696]
[1736982107438,1.28012213,713.44,712.1,1.696]
[1736982107637,1.28012606,713.43,712.1,1.696]
[1736982107837,1.28016801,713.42,712.1,1.696]
[1736982108038,0.99982824,713.41,712.1,1.696]
[1736982108239,0.99982824,713.4,712.1,1.696]
[1736982108439,0.99982824,713.39,712.1,1.696]
[1736982108640,0.99982824,713.38,712.1,1.696]
[1736982108844,0.99982824,713.37,712.1,1.696]
[1736982109040,0.28033977,713.42,712.1,1.696]
[1736982109041,0.99982824,713.36,712.1,1.696]
[1736982109245,0.99982824,713.35,712.1,1.696]
[1736982109446,0.99982824,713.34,712.1,1.696]
[1736982109647,0.99982824,713.33,712.1,1.696]
[1736982109947,0.99984624,713.32,712.1,1.696]
[1736982110247,0.99984624,713.31,712.1,1.696]
[1736982110445,1.04959705,713.48,712.1,1.696]
[1736982110446,0.74210765,713.3,712.1,1.696]
[1736982110742,0.99985385,713.29,712.1,1.696]
[1736982110946,0.99985385,713.28,712.1,1.696]
[1736982111145,0.99985385,713.27,712.1,1.696]
[1736982111347,0.99985385,713.26,712.1,1.696]
[1736982111546,0.99985385,713.25,712.1,1.696]
[1736982111847,0.99985385,713.24,712.1,1.696]
[1736982112048,0.74210765,713.23,712.1,1.696]
[1736982112247,0.74211663,713.22,712.1,1.696]
[1736982112447,0.74211663,713.21,712.1,1.696]
[1736982112748,0.74211663,713.2,712.1,1.696]
[1736982112949,0.74211663,713.19,712.1,1.696]
[1736982113142,0.74211663,713.18,712.1,1.696]
[1736982113342,0.74211663,713.17,712.1,1.696]
[1736982113541,0.74211663,713.16,712.1,1.696]
[1736982113745,0.74211663,713.15,712.1,1.696]
[1736982113943,0.74211663,713.14,712.1,1.696]
[1736982114147,0.74211663,713.13,712.1,1.696]
[1736982114447,0.74211663,713.12,712.1,1.696]
[1736982114644,0.74211663,713.11,712.1,1.696]
[1736982114843,1.25951646,714.05,712.1,1.696]
[1736982114844,0.74211663,713.1,712.1,1.696]
[1736982115043,0.74211663,713.09,712.1,1.696]
[1736982115242,0.74211663,713.08,712.1,1.696]
[1736982115447,0.74211663,713.07,712.1,1.696]
[1736982115647,0.74211663,713.06,712.1,1.696]
[1736982115843,0.74211663,713.05,712.1,1.696]
[1736982116042,0.7421132,713.04,712.1,1.696]
[1736982116241,0.7421132,713.03,712.1,1.696]
[1736982116446,0.7421132,713.02,712.1,1.696]
[1736982116644,0.7421132,713.01,712.1,1.696]
[1736982116844,0.7421132,713.0,712.1,1.696]
[1736982117144,0.7421132,712.99,712.1,1.696]
[1736982117343,0.7421132,712.98,712.1,1.696]
[1736982117548,0.7421132,712.97,712.1,1.696]
[1736982117846,0.7421132,712.96,712.1,1.696]
[1736982118043,0.7421132,712.95,712.1,1.696]
[1736982118248,0.7421132,712.94,712.1,1.696]
[1736982118450,1.04959705,713.47,712.1,1.696]
[1736982118642,1.04959705,713.39,712.1,1.696]
[1736982118846,0.99984801,713.38,712.1,1.696]
[1736982119151,0.99984801,713.37,712.1,1.696]
[1736982119349,0.99984801,713.36,712.1,1.696]
[1736982119649,0.99984801,713.35,712.1,1.696]
[1736982119843,0.99984801,713.34,712.1,1.696]
[1736982120046,0.99984965,713.33,712.1,1.696]
[1736982120247,0.99984965,713.32,712.1,1.696]
[1736982120449,0.99984965,713.31,712.1,1.696]
[1736982120648,0.99984965,713.3,712.1,1.696]
[1736982120846,0.99984965,713.29,712.1,1.696]
[1736982121051,0.99985134,713.28,712.1,1.696]
[1736982121251,0.99985134,713.27,712.1,1.696]
[1736982121451,0.99985134,713.26,712.1,1.696]
[1736982121653,0.99985134,713.25,712.1,1.696]
[1736982121952,0.99985134,713.24,712.1,1.696]
[1736982122150,0.99985134,713.23,712.1,1.696]
[1736982122352,0.74210004,713.22,712.1,1.696]
[1736982122547,0.99984782,713.21,712.1,1.696]
[1736982122754,0.99984782,713.2,712.1,1.696]
[1736982122949,0.99984782,713.19,712.1,1.696]
[1736982123150,0.99984782,713.18,712.1,1.696]
[1736982123349,1.04959705,713.38,712.1,1.696]
[1736982123350,0.74210004,713.17,712.1,1.696]
[1736982123551,0.99985469,713.16,712.1,1.696]
[1736982123752,0.99985469,713.15,712.1,1.696]
[1736982124054,0.99985469,713.14,712.1,1.696]
[1736982124250,0.99985469,713.13,712.1,1.696]
[1736982124446,0.99985469,713.12,712.1,1.696]
[1736982124647,0.74210004,713.11,712.1,1.696]
[1736982124852,0.74210004,713.1,712.1,1.696]
[1736982125053,0.74210004,713.09,712.1,1.696]
[1736982125354,1.04959705,713.38,712.1,1.696]
[1736982125355,0.74210004,713.08,712.1,1.696]
[1736982125547,0.74210004,713.07,712.1,1.696]
[1736982125752,0.74210004,713.06,712.1,1.696]
[1736982125951,0.74210004,713.05,712.1,1.696]
[1736982126154,1.04959705,713.4,712.1,1.696]
[1736982126155,0.74210004,713.04,712.1,1.696]
[1736982126358,0.74210004,713.03,712.1,1.696]
[1736982126552,0.74210004,713.02,712.1,1.696]
[1736982126757,0.74210004,713.01,712.1,1.696]
[1736982127055,0.99990417,713.0,712.1,1.696]
[1736982127357,1.00001139,712.99,712.1,1.696]
[1736982127556,1.00001139,712.98,712.1,1.696]
[1736982127850,0.7422042,712.97,712.1,1.696]
[1736982128053,0.7422042,712.96,712.1,1.696]
[1736982128256,1.00003649,712.95,712.1,1.696]
[1736982128456,1.00003649,712.94,712.1,1.696]
[1736982128655,0.7422042,712.93,712.1,1.696]
[1736982128852,0.7422042,712.92,712.1,1.696]
[1736982129056,1.04959705,713.25,712.1,1.696]
[1736982129254,1.04959705,713.22,712.1,1.696]
[1736982129457,1.00001072,713.21,712.1,1.696]
[1736982129758,1.00001072,713.2,712.1,1.696]
[1736982129960,1.04959705,713.43,712.1,1.696]
[1736982129961,1.00001072,713.19,712.1,1.696]
[1736982130159,1.00001072,713.18,712.1,1.696]
[1736982130360,1.00001072,713.17,712.1,1.696]
[1736982130556,1.00001072,713.16,712.1,1.696]
[1736982130760,1.00001072,713.15,712.1,1.696]
[1736982130961,1.00001072,713.14,712.1,1.696]
[1736982131156,1.00001072,713.13,712.1,1.696]
[1736982131357,1.00001072,713.12,712.1,1.696]
[1736982131557,1.00001979,713.11,712.1,1.696]
[1736982131754,1.00001979,713.1,712.1,1.696]
[1736982131959,1.00001979,713.09,712.1,1.696]
[1736982132260,1.00001979,713.08,712.1,1.696]
[1736982132560,1.00001979,713.07,712.1,1.696]
[1736982132760,1.00001979,713.06,712.1,1.696]
[1736982133059,1.00001979,713.05,712.1,1.696]
[1736982133260,1.00001979,713.04,712.1,1.696]
[1736982133461,1.00001979,713.03,712.1,1.696]
[1736982133656,1.00001979,713.02,712.1,1.696]
[1736982133857,1.00001979,713.01,712.1,1.696]
[1736982134157,0.74216987,713.0,712.1,1.696]
[1736982134360,1.0000462,712.99,712.1,1.696]
[1736982134557,1.0000462,712.98,712.1,1.696]
[1736982134759,0.74216987,712.97,712.1,1.696]
[1736982134958,1.00005385,712.96,712.1,1.696]
[1736982135160,1.00005385,712.95,712.1,1.696]
[1736982135357,1.00005385,712.94,712.1,1.696]
[1736982135558,1.00005385,712.93,712.1,1.696]
[1736982135755,1.00005385,712.92,712.1,1.696]
[1736982135954,1.00005385,712.91,712.1,1.696]
[1736982136159,1.00005385,712.9,712.1,1.696]
[1736982136354,1.00005385,712.89,712.1,1.696]
[1736982136557,1.00005385,712.88,712.1,1.696]
[1736982136760,1.00005385,712.87,712.1,1.696]
[1736982136954,0.74102653,712.86,712.1,1.696]
[1736982137155,0.99891146,712.85,712.1,1.696]
[1736982137462,0.99891146,712.84,712.1,1.696]
[1736982137660,0.99891146,712.83,712.1,1.696]
[1736982137861,0.99891146,712.82,712.1,1.696]
[1736982138162,0.99891146,712.81,712.1,1.696]
[1736982138361,0.99891146,712.8,712.1,1.696]
[1736982138561,0.99891146,712.79,712.1,1.696]
[1736982138763,0.99891146,712.78,712.1,1.696]
[1736982138962,0.99891146,712.77,712.1,1.696]
[1736982139163,0.99891146,712.76,712.1,1.696]
[1736982139463,0.99891146,712.75,712.1,1.696]
[1736982139662,1.04959705,713.09,712.1,1.696]
[1736982139663,0.99891703,712.74,712.1,1.696]
[1736982139858,1.04959705,713.09,712.1,1.696]
[1736982139859,0.74102653,712.73,712.1,1.696]
[1736982140064,1.04959705,713.09,712.1,1.696]
[1736982140065,0.74102653,712.72,712.1,1.696]
[1736982140261,0.74102653,712.71,712.1,1.696]
[1736982140457,0.74102653,712.7,712.1,1.696]
[1736982140666,0.74102653,712.69,712.1,1.696]
[1736982140963,0.74102653,712.68,712.1,1.696]
[1736982141159,0.74102653,712.67,712.1,1.696]
[1736982141358,0.74102653,712.66,712.1,1.696]
[1736982141558,0.74102653,712.65,712.1,1.696]
[1736982141769,0.74102653,712.64,712.1,1.696]
[1736982141967,0.74102653,712.63,712.1,1.696]
[1736982142264,0.74102653,712.62,712.1,1.696]
[1736982142464,0.74102653,712.61,712.1,1.696]
[1736982142763,1.25951646,713.56,712.1,1.696]
[1736982142764,0.74102653,712.6,712.1,1.696]
[1736982142965,0.74102653,712.59,712.1,1.696]
[1736982143164,0.74102653,712.58,712.1,1.696]
[1736982143464,0.74102653,712.57,712.1,1.696]
[1736982143664,0.74102653,712.56,712.1,1.696]
[1736982143867,0.74102653,712.55,712.1,1.696]
[1736982144064,0.74102653,712.54,712.1,1.696]
[1736982144257,0.74102653,712.53,712.1,1.696]
[1736982144457,0.74102653,712.52,712.1,1.696]
[1736982144766,0.74102653,712.51,712.1,1.696]
[1736982145060,0.74102653,712.5,712.1,1.696]
[1736982145261,0.74102653,712.49,712.1,1.696]
[1736982145465,0.74102653,712.48,712.1,1.696]
[1736982145665,0.74102653,712.47,712.1,1.696]
[1736982145861,0.74102653,712.46,712.1,1.696]
[1736982146066,1.04959705,713.03,712.1,1.696]
[1736982146067,0.74102653,712.45,712.1,1.696]
[1736982146266,0.74102653,712.44,712.1,1.696]
[1736982146466,1.04959705,713.1,712.1,1.696]
[1736982146660,0.99732328,713.09,712.1,1.696]
[1736982146865,0.99732328,713.08,712.1,1.696]
[1736982147064,0.99732328,713.07,712.1,1.696]
[1736982147265,0.99732328,713.06,712.1,1.696]
[1736982147461,0.99732328,713.05,712.1,1.696]
[1736982147661,0.99732328,713.04,712.1,1.696]
[1736982147867,0.99732345,713.03,712.1,1.696]
[1736982148168,0.99732345,713.02,712.1,1.696]
[1736982148368,0.99732345,713.01,712.1,1.696]
[1736982148665,0.99732345,713.0,712.1,1.696]
[1736982148863,0.99732345,712.99,712.1,1.696]
[1736982149065,0.99732345,712.98,712.1,1.696]
[1736982149267,0.99732345,712.97,712.1,1.696]
[1736982149469,0.99732345,712.96,712.1,1.696]
[1736982149663,0.99732345,712.95,712.1,1.696]
[1736982149867,0.99732345,712.94,712.1,1.696]
[1736982150068,0.99732345,712.93,712.1,1.696]
[1736982150270,0.99732345,712.92,712.1,1.696]
[1736982150470,0.7393738,712.91,712.1,1.696]
[1736982150772,0.99732317,712.9,712.1,1.696]
[1736982150963,0.99732317,712.89,712.1,1.696]
[1736982151164,0.99732317,712.88,712.1,1.696]
[1736982151369,0.99732317,712.87,712.1,1.696]
[1736982151573,0.99732317,712.86,712.1,1.696]
[1736982151871,0.99732317,712.85,712.1,1.696]
[1736982152070,0.99732317,712.84,712.1,1.696]
[1736982152372,0.99732317,712.83,712.1,1.696]
[1736982152573,0.99732317,712.82,712.1,1.696]
[1736982152774,0.99732317,712.81,712.1,1.696]
[1736982153075,0.99732317,712.8,712.1,1.696]
[1736982153376,0.99733812,712.79,712.1,1.696]
[1736982153571,0.99733812,712.78,712.1,1.696]
[1736982153877,0.99733812,712.77,712.1,1.696]
[1736982154079,0.99733812,712.76,712.1,1.696]
[1736982154377,0.99733812,712.75,712.1,1.696]
[1736982154578,0.99733812,712.74,712.1,1.696]
[1736982154776,0.99733812,712.73,712.1,1.696]
[1736982154978,0.99733812,712.72,712.1,1.696]
[1736982155170,0.99733812,712.71,712.1,1.696]
[1736982155374,0.99733812,712.7,712.1,1.696]
[1736982155674,0.99733812,712.69,712.1,1.696]
[1736982155875,0.99733812,712.68,712.1,1.696]
[1736982156076,0.99735289,712.67,712.1,1.696]
[1736982156273,1.04959705,712.96,712.1,1.696]
[1736982156274,0.99735289,712.66,712.1,1.696]
[1736982156478,0.99735289,712.65,712.1,1.696]
[1736982156672,0.99735289,712.64,712.1,1.696]
[1736982156874,0.99735289,712.63,712.1,1.696]
[1736982157075,0.99735289,712.62,712.1,1.696]
[1736982157275,0.99735289,712.61,712.1,1.696]
[1736982157476,0.99735289,712.6,712.1,1.696]
[1736982157676,0.99735289,712.59,712.1,1.696]
[1736982157878,0.99735289,712.58,712.1,1.696]
[1736982158073,0.99735289,712.57,712.1,1.696]
[1736982158272,0.99735289,712.56,712.1,1.696]
[1736982158479,0.99735289,712.55,712.1,1.696]
[1736982158779,0.99736988,712.54,712.1,1.696]
[1736982158978,0.99736988,712.53,712.1,1.696]
[1736982159175,0.99736988,712.52,712.1,1.696]
[1736982159375,0.7393738,712.51,712.1,1.696]
[1736982159577,1.04959705,712.9,712.1,1.696]
[1736982159578,0.99737104,712.5,712.1,1.696]
[1736982159777,0.99737104,712.49,712.1,1.696]
[1736982159977,0.99737104,712.48,712.1,1.696]
[1736982160177,0.7393738,712.47,712.1,1.696]
[1736982160378,0.7393738,712.46,712.1,1.696]
[1736982160577,0.7393738,712.45,712.1,1.696]
[1736982160778,0.7393738,712.44,712.1,1.696]
[1736982160979,0.7393738,712.43,712.1,1.696]
[1736982161179,0.7393738,712.42,712.1,1.696]
[1736982161379,0.7393738,712.41,712.1,1.696]
[1736982161578,0.7393738,712.4,712.1,1.696]
[1736982161779,0.7393738,712.39,712.1,1.696]
[1736982162081,0.7393738,712.38,712.1,1.696]
[1736982162283,0.73716839,712.37,712.1,1.696]
[1736982162481,1.04959705,712.82,712.1,1.696]
[1736982162781,1.27574431,712.81,712.1,1.696]
[1736982162983,1.04959705,712.79,712.1,1.68753184]
[1736982163183,0.99516464,712.78,712.1,1.68753184]
[1736982163483,0.99516464,712.77,712.1,1.68753184]
[1736982163679,0.99516464,712.76,712.1,1.68753184]
[1736982163875,0.99516464,712.75,712.1,1.68753184]
[1736982164080,0.99516464,712.74,712.1,1.68753184]
[1736982164281,0.99516557,712.73,712.1,1.68753184]
[1736982164581,0.99516557,712.72,712.1,1.68753184]
[1736982164882,1.27578461,712.71,712.1,1.68753184]
[1736982165085,0.99516557,712.7,712.1,1.68753184]
[1736982165381,0.99516557,712.69,712.1,1.68753184]
[1736982165575,0.99516557,712.68,712.1,1.68753184]
[1736982165779,0.99516557,712.67,712.1,1.68753184]
[1736982165977,0.99516557,712.66,712.1,1.68753184]
[1736982166183,0.99516557,712.65,712.1,1.68753184]
[1736982166383,0.99516557,712.64,712.1,1.68753184]
[1736982166579,1.33021609,712.71,712.1,1.68753184]
[1736982166580,0.99516557,712.63,712.1,1.68753184]
[1736982166778,0.99516557,712.62,712.1,1.68753184]
[1736982166979,0.9951656,712.61,712.1,1.68753184]
[1736982167185,0.99536611,712.6,712.1,1.68753184]
[1736982167385,0.99536611,712.59,712.1,1.68753184]
[1736982167584,0.7373749,712.58,712.1,1.68753184]
[1736982167781,0.9953658,712.57,712.1,1.68753184]
[1736982167979,0.9953658,712.56,712.1,1.68753184]
[1736982168181,0.28061904,712.71,712.1,1.68753184]
[1736982168182,0.9953658,712.55,712.1,1.68753184]
[1736982168388,0.9953658,712.54,712.1,1.68753184]
[1736982168687,0.9953658,712.53,712.1,1.68753184]
[1736982168886,0.9953658,712.52,712.1,1.68753184]
[1736982169187,0.9953658,712.51,712.1,1.68753184]
[1736982169382,0.9953658,712.5,712.1,1.68753184]
[1736982169588,0.9953658,712.49,712.1,1.68753184]
[1736982169886,0.9953658,712.48,712.1,1.68753184]
[1736982170086,0.99553718,712.47,712.1,1.68753184]
[1736982170387,0.99553718,712.46,712.1,1.68753184]
[1736982170686,0.99553718,712.45,712.1,1.68753184]
[1736982170885,0.99553718,712.44,712.1,1.68753184]
[1736982171085,0.99553718,712.43,712.1,0.745]
[1736982171286,0.73754628,712.42,712.1,0.745]
[1736982171587,0.73754628,712.41,712.1,0.745]
[1736982171784,0.73754628,712.4,712.1,0.745]
[1736982171981,0.73754628,712.39,712.1,0.745]
[1736982172185,0.73754628,712.38,712.1,0.745]
[1736982172484,0.73777276,712.37,712.1,0.745]
[1736982172680,0.73777276,712.36,712.1,0.745]
[1736982172885,0.73777276,712.35,712.1,0.745]
[1736982173086,0.73777276,712.34,712.1,0.745]
[1736982173281,0.73777276,712.33,712.1,0.745]
[1736982173485,0.73777276,712.32,712.1,0.745]
[1736982173686,1.04959705,712.61,712.1,0.745]
[1736982173884,0.99586555,712.6,712.1,0.745]
[1736982174088,2.04546284,712.59,712.1,0.745]
[1736982174283,0.99586579,712.58,712.1,0.745]
[1736982174487,0.99586579,712.57,712.1,0.745]
[1736982174686,0.99586579,712.56,712.1,0.745]
[1736982174888,0.99586579,712.55,712.1,0.745]
[1736982175089,0.99586579,712.54,712.1,0.745]
[1736982175289,0.99586579,712.53,712.1,0.745]
[1736982175491,0.99586579,712.52,712.1,0.745]
[1736982175690,0.99586579,712.51,712.1,0.745]
[1736982175890,0.99586315,712.5,712.1,0.745]
[1736982176090,0.73810526,712.49,712.1,0.745]
[1736982176292,0.73810526,712.48,712.02,0.827]
[1736982176487,0.73810526,712.47,712.02,0.827]
[1736982176692,1.04959705,712.57,712.02,0.827]
[1736982176693,0.73810526,712.46,712.02,0.827]
[1736982176986,0.73810526,712.45,712.02,0.827]
[1736982177191,0.73810526,712.44,712.02,0.827]
[1736982177390,0.73810526,712.43,712.02,0.827]
[1736982177693,0.73810526,712.42,712.02,0.827]
[1736982177891,0.73810526,712.41,712.02,0.827]
[1736982178090,0.73810526,712.4,712.02,0.827]
[1736982178290,0.73810526,712.39,712.02,0.827]
[1736982178490,0.73810526,712.38,712.02,0.827]
[1736982178692,0.73810526,712.37,712.02,0.827]
[1736982178889,0.73810526,712.36,712.02,0.827]
[1736982179090,0.73810526,712.35,712.02,0.827]
[1736982179286,0.73810526,712.34,712.02,0.827]
[1736982179491,0.73810526,712.33,712.02,0.827]
[1736982179787,0.73810526,712.32,712.02,0.827]
[1736982179990,0.73810526,712.31,712.02,0.827]
[1736982180190,0.73810526,712.3,712.02,0.827]
[1736982180390,1.04959705,712.57,712.02,0.827]
[1736982180586,0.99689137,712.56,712.02,0.827]
[1736982180789,0.99689137,712.55,712.02,0.827]
[1736982181093,0.99689137,712.54,712.02,0.827]
[1736982181293,0.99689137,712.53,712.02,0.827]
[1736982181491,0.99689137,712.52,712.02,0.827]
[1736982181690,0.7388862,712.51,712.02,0.827]
[1736982181891,0.7388862,712.5,712.02,0.827]
[1736982182193,0.7388862,712.49,712.02,0.827]
[1736982182393,0.7388862,712.48,712.02,0.827]
[1736982182595,0.7388862,712.47,712.02,0.827]
[1736982182896,0.7388862,712.46,712.02,0.827]
[1736982183093,0.7388862,712.45,712.02,0.827]
[1736982183294,0.7388862,712.44,712.02,0.827]
[1736982183494,0.7388862,712.43,712.02,0.827]
[1736982183695,0.7388862,712.42,712.02,0.827]
[1736982183897,0.7388862,712.41,712.02,0.827]
[1736982184097,0.7388862,712.4,712.02,0.827]
[1736982184297,0.7388862,712.39,712.02,0.827]
[1736982184490,0.7388862,712.38,712.02,0.827]
[1736982184694,0.7388862,712.37,712.02,0.827]
[1736982184897,0.7388862,712.36,712.02,0.827]
[1736982185097,0.7388862,712.35,712.02,0.827]
[1736982185398,1.04959705,712.57,712.02,1.571]
[1736982185596,0.74037903,712.56,712.02,1.571]
[1736982185796,0.74037903,712.55,712.02,1.571]
[1736982185997,0.74037903,712.54,712.02,1.571]
[1736982186193,0.74037903,712.53,712.02,1.571]
[1736982186392,0.74037903,712.52,712.02,1.571]
[1736982186597,0.74037903,712.51,712.02,1.571]
[1736982186799,0.28061904,712.71,712.02,1.571]
[1736982186800,0.74037903,712.5,712.02,1.571]
[1736982186998,0.74037903,712.49,712.02,1.571]
[1736982187198,0.74037903,712.48,712.02,1.571]
[1736982187398,0.74037903,712.47,712.02,1.571]
[1736982187600,0.74037903,712.46,712.02,1.571]
[1736982187901,1.33021609,712.71,712.02,1.571]
[1736982188098,0.74095363,712.7,712.02,1.571]
[1736982188298,0.74095363,712.69,712.02,1.571]
[1736982188496,0.74095363,712.68,712.02,1.571]
[1736982188697,0.74095363,712.67,712.02,1.571]
[1736982188898,0.74095363,712.66,712.02,1.571]
[1736982189100,0.74115871,712.65,712.02,1.571]
[1736982189297,0.74115871,712.64,712.02,1.571]
[1736982189496,0.74115871,712.63,712.02,1.571]
[1736982189802,0.74115871,712.62,712.02,1.571]
[1736982189996,0.74115871,712.61,712.02,1.571]
[1736982190201,0.28061904,712.71,712.02,1.571]
[1736982190202,0.74115871,712.6,712.02,1.571]
[1736982190398,0.74115871,712.59,712.02,1.571]
[1736982190596,0.74115871,712.58,712.02,1.571]
[1736982190795,0.28061904,712.71,712.02,1.571]
[1736982190796,0.74115871,712.57,712.02,1.571]
[1736982190997,0.74151759,712.56,712.02,1.571]
[1736982191205,0.74151759,712.55,712.02,1.571]
[1736982191397,0.74169003,712.54,712.02,1.571]
[1736982191596,0.74169003,712.53,712.02,1.571]
[1736982191797,0.74169003,712.52,712.02,1.571]
[1736982192003,0.74169003,712.51,712.02,1.571]
[1736982192197,0.74169003,712.5,712.02,1.571]
[1736982192397,0.74169003,712.49,712.02,1.571]
[1736982192601,0.74169003,712.48,712.02,1.571]
[1736982192797,0.74169003,712.47,712.02,1.571]
[1736982193000,0.28061904,712.71,712.02,1.571]
[1736982193001,0.74169003,712.46,712.02,1.571]
[1736982193201,0.74169003,712.45,712.02,1.571]
[1736982193400,0.74169003,712.44,712.02,1.571]
[1736982193704,0.74169003,712.43,712.02,1.571]
[1736982193898,0.74169003,712.42,712.02,1.571]
[1736982194097,0.74169003,712.41,712.02,1.571]
[1736982194302,0.74169003,712.4,712.02,1.571]
[1736982194497,0.74169003,712.39,712.02,1.571]
[1736982194699,0.74169003,712.38,712.02,1.571]
[1736982194897,0.28061904,712.71,712.02,1.571]
[1736982194898,0.74215576,712.37,712.02,1.571]
[1736982195097,0.74215576,712.36,712.02,1.571]
[1736982195299,0.74215576,712.35,712.02,1.571]
[1736982195497,0.74215576,712.34,712.02,1.571]
[1736982195804,0.74215576,712.33,712.02,1.571]
[1736982196004,0.74215576,712.32,712.02,1.571]
[1736982196203,0.74215576,712.31,712.02,1.571]
[1736982196404,0.74215576,712.3,712.02,1.571]
[1736982196605,0.74215576,712.29,712.02,1.571]
[1736982196805,0.74240213,712.28,712.02,1.571]
[1736982197005,0.74240681,712.27,712.02,1.571]
[1736982197306,0.28061904,712.71,712.02,1.571]
[1736982197602,0.74254048,712.7,712.02,1.571]
[1736982197806,0.74254048,712.69,712.02,1.571]
[1736982198008,0.74254048,712.68,712.02,1.571]
[1736982198203,0.74254048,712.67,712.02,1.571]
[1736982198408,0.74254048,712.66,712.02,1.571]
[1736982198707,0.74254048,712.65,712.02,1.571]
[1736982198907,0.74254048,712.64,712.02,1.571]
[1736982199106,0.74254048,712.63,712.02,1.571]
[1736982199308,0.74254048,712.62,712.02,1.571]
[1736982199504,0.74254048,712.61,712.02,1.571]
[1736982199810,0.74254048,712.6,712.02,1.571]
[1736982200008,0.74254048,712.59,712.02,1.571]
[1736982200204,0.74254048,712.58,712.02,1.571]
[1736982200407,0.74254048,712.57,712.02,1.571]
[1736982200607,0.74254048,712.56,712.02,1.571]
[1736982200810,0.74254048,712.55,712.02,1.571]
[1736982201010,0.74254048,712.54,712.02,1.571]
[1736982201208,0.74254048,712.53,712.02,1.571]
[1736982201408,0.74254048,712.52,712.02,1.571]
[1736982201712,0.74254048,712.51,712.02,1.571]
[1736982201909,0.74254048,712.5,712.02,1.571]
[1736982202109,0.74254048,712.49,712.02,1.571]
[1736982202409,0.28061904,712.71,712.02,1.571]
[1736982202410,0.74254048,712.48,712.02,1.571]
[1736982202610,0.74254048,712.47,712.02,1.571]
[1736982202914,0.74254048,712.46,712.02,1.571]
[1736982203112,0.74254048,712.45,712.02,1.571]
[1736982203307,0.74254048,712.44,712.02,1.571]
[1736982203512,0.74254048,712.43,712.02,1.571]
[1736982203813,0.74254048,712.42,712.02,1.571]
[1736982204013,0.74254048,712.41,712.02,1.571]
[1736982204215,0.74254048,712.4,712.02,1.571]
[1736982204410,0.74254048,712.39,712.02,1.571]
[1736982204616,0.74314278,712.38,712.02,1.571]
[1736982204811,0.74314278,712.37,712.02,1.571]
[1736982205010,0.74314278,712.36,712.02,1.571]
[1736982205213,0.74314278,712.35,712.02,1.571]
[1736982205415,0.28061904,712.71,712.02,1.571]
[1736982205616,0.74308735,712.7,712.02,1.571]
[1736982205814,0.74308735,712.69,712.02,1.571]
[1736982206013,0.74308735,712.68,712.02,1.571]
[1736982206221,0.74308735,712.67,712.02,1.571]
[1736982206514,0.28061904,712.71,712.02,1.571]
[1736982206515,0.74308735,712.66,712.02,1.571]
[1736982206713,0.74308735,712.65,712.02,1.571]
[1736982206916,0.74308735,712.64,712.02,1.571]
[1736982207117,0.74308735,712.63,712.02,1.571]